{"text_format":"1","workbook":"xlsx","n_sheets":8,"sheets":["Menu","1. Declaration under S53A","2. Notes to Complete Analysis","3. Landfill Data - to Complete","4. Financial Data - To Complete","5. Section 53A Analysis","6. Comments - To Complete","7. Data Sheet"],"not_rendered":{"charts":0,"images":3,"macros":1,"external_links":0,"defined_names":9,"comments":0,"pivot_tables":0},"unopened":[],"bounds":{"document_bytes":16777216,"sheet_cells":100000,"rows_first":2000,"rows_last":500,"rows_between":2000,"halvings":0,"cell_chars":16384,"cell_head_chars":4096},"cells_cut":0,"cells_raw":0,"read":"whole","date_system":"1900"}

{"sheet":"Menu","index":0,"n_rows":18,"n_cols":2,"rows_kept":18,"cut":false,"hidden":false,"merged":[]}
[]
[]
[]
[]
[]
[]
[]
[null,"Welcome. This application is intended for use by licensees of the Environmental Protection Agency in"]
[null,"connection with reporting obligations under Section 53A of the Waste Management Act, 1996 "]
[null,"(as amended)."]
[]
[null,"You can navigate the application using the menu system below (you will need to \"Enable Macros\" or"]
[null,"if you get a Security Warning: Macros have been disabled message please click on \"Options\" above"]
[null,"and choose \"Enable this content\"). Alternatively you can navigate by clicking on the tabs at the bottom "]
[null,"of the screen. If you have any technical queries in relation to the use of this application please contact"]
[null,"S53aReturns@epa.ie."]
[]
[null,"Please email the completed workbook, including the declaration under S53A, to S53aReturns@epa.ie."]

{"sheet":"1. Declaration under S53A","index":1,"n_rows":3,"n_cols":1,"rows_kept":3,"cut":false,"hidden":false,"merged":[[2,0,2,3]]}
[]
[]
["Please click on the declaration below, edit the information in square brackets and complete all the required information."]

{"sheet":"2. Notes to Complete Analysis","index":2,"n_rows":89,"n_cols":1,"rows_kept":89,"cut":false,"hidden":false,"merged":[]}
[]
[]
[]
[]
["Notes to Assist Completion of the Detailed Analysis Supporting the Statement of Compliance with Section 53A:"]
[]
["Please read these notes carefully prior to the completion of the Detailed Analysis spreadsheet"]
[]
[]
["Note 1"]
["Section 53A (sections 1 to 4) of the Waste Management Act, 1996 (as amended) states the following:"]
["1)     The operator of a landfill facility (other than an internal landfill facility), or such other facility for the disposal of waste as may be prescribed for the purposes of this subsection, shall impose charges in respect of the disposal of waste at the facility."]
["2)     Subject to subsection (3), different amounts of charges may be imposed under subsection (1) in respect of different disposals of waste at the facility concerned. "]
["3)     The amount or amounts of charges imposed under subsection (1) shall be such as the operator of the facility concerned determines is likely to ensure that the result specified in subsection (4) is achieved."]
["4)     The result referred to in subsection (3) is that the aggregate of the amount of charges imposed by the operator, in relation to the facility concerned, during the relevant period will not be less than the amount that would meet the following costs (irrespective of whether those costs, or any of them, have been or will be met from other financial measures available to the operator), namely – "]
["a)     the costs incurred by the operator in the acquisition or development, or both (as the case may be), of the facility,"]
["b)    the costs of operating the facility during the relevant period (including the costs of making any financial provision under section 53), and"]
["c)     the estimated costs, during a period of not less than 30 years or such greater period as may be prescribed, of the closure, restoration, remediation or aftercare of the facility."]
[]
["Note 2"]
["Section 53A requires charges to be imposed during the \"relevant period\". The EPA hereby specifies that the start of the relevant period is the date of commencement of waste disposal in the landfill and the end of the relevant period is the predicted date of cessation of waste disposal in the landfill. It should be noted that although the relevant period during which charges must be imposed necessarily relates to the period of waste disposal, the costs that must be met by those charges includes costs incurred outside the relevant period, i.e. acquisition, development, closure, restoration, remediation and aftercare costs. "]
[]
["Note 3"]
["Landfill operators must complete the Worsksheet - \"3. Landfill Data - To Complete\"."]
["Landfill operators must complete the Worsksheet - \"4. Financial Data - To Complete\"."]
["Worksheet 5. \"Section 53A Analysis\" summarises the data that you have completed and provides an indication of Section 53A Compliance. No information needs to be input in this Worksheet."]
[]
["Landfill operators must complete the Worksheet - \"6. Comments - to Complete\" if you have any queries or points of clarification that you would like to make as part of your submission."]
[]
["Note 4"]
["In the Worksheet - \"3. Landfill Data - To Complete\", please note the following very carefully for Inputs 5, 6 and 7:"]
["1)     The total disposal capacity of the landfill facility refers to the disposal capacity over the entire lifecycle, i.e. the disposal capacity of full cells plus active cells plus any cells to be constructed in the future. It should not be confused with total constructed disposal capacity or remaining disposal capacity."]
["2)     The total disposal capacity should be based on fully consented landfill only, i.e. the parts of the landfill with both planning permission and waste licence."]
["3)     The capacity is defined by the top of the basal/side liner system and base of the final capping system."]
["4)     The total disposal capacity refers to waste for disposal only. A deduction should be made for cover materials left or to be left in-situ."]
[]
["Note 5"]
["In the Worksheet - \"3. Landfill Data - To Complete\", please note the following very carefully for Input 8:"]
["1)     The Total Constructed Disposal Capacity refers to the capacity over the entire lifecycle of cells constructed to date, i.e. the capacity of full cells plus active cells plus any cells constructed but not yet in use. It should not be confused with Total Disposal Capacity or remaining disposal capacity."]
["2)     The capacity is defined by the top of the basal/side liner system and base of the final capping system."]
["3)     Total disposal capacity refers to waste for disposal only. A deduction should be made for cover materials left or to be left in-situ."]
[]
["Note 6"]
["In the Worksheet - \"4. Financial Data - to Complete\", please input all the data requested (marked in light grey) as positive numbers except where there is (1) a debit i.e. cost in the Revenue section or (2) a credit i.e. income in the Cost sections."]
[]
["Cells marked in green denote cells where the data is automatically completed and hence where you do NOT need to input data to."]
[]
["Cells marked in dark grey should be entirely ignored and no data should be input to these."]
[]
["Note 7"]
["In the Worksheet - \"4. Financial Data - to Complete\", please complete all the data requested as follows:"]
["·         Sections A to D for ALL relevant years (including, if relevant, the \"Total Estimated Prior to Y/E in 2003/2004\" column) up to the year covered by the Section 53A analysis."]
["·         Sections E1-E5, which represent total numbers, potentially covering the full lifecycle (including post closure) of the landfill."]
["·         Do NOT enter any data in years following the year of the return in question."]
[]
["Note 8"]
["Do not overwrite formulae or add in columns or rows in any circumstance. There is a separate row at the end of each section for \"Other\" items."]
[]
["Note 9"]
["All revenues and costs (operating and capital) should be stated excluding recoverable VAT."]
[]
["Note 10"]
["We ask for landfill levy to be input in both the revenue and operating cost sections such that it will net off to zero. However, if your financial data excludes it altogether you may put zero into each."]
[]
["Note 11"]
["Section 53A refers to landfill facilities and the \"disposal of waste at the facility concerned\" and therefore the analysis must exclude revenues and costs unrelated to landfill. For example, revenues and costs in relation to a composting facility or civic amenity located on site must be EXCLUDED from the analysis."]
[]
["Note 12"]
["The financial year during which Section 53A was enacted (i.e. 12 July 2004) must be split between two periods - (1) \"Previous Y/E to 11 July 2004\" and (2) \"12 July 2004 to next Y/E\". You may use a reasonable estimate to split this year."]
[]
["Note 13"]
["The model allocates (1) Acquisition, (2) Development, and (3) Closure, Remediation, Aftercare and Management Plan (\"CRAMP\") costs to the period prior to the introduction of Section 53A and the period after the introduction of Section 53A (on a year by year basis). "]
[]
["The amount of these costs to be allocated to each year is calculated on the basis of the following:"]
[]
["E1: Tonnage/M3 for Year in question divided by Total Disposal Capacity (in Tonnage/M3)"]
["E2: Tonnage/M3 for Year in question divided by Total Constructed Disposal Capacity (in Tonnage/M3)"]
["E3: Tonnage/M3 for Year in question divided by Total Constructed Disposal Capacity (in Tonnage/M3)"]
["E4: Tonnage/M3 for Year in question divided by Total Constructed Disposal Capacity (in Tonnage/M3)"]
["E5: Tonnage/M3 for Year in question divided by Total Disposal Capacity (in Tonnage/M3)"]
[]
["Note 14"]
["Section D of the worksheet \"4. Financial Data - To Complete\" calculates \"Adjusted Operating Profit\". This calculation is used for the purposes of making your data consistent with Section 53A, and to avoid double counting of any costs. For example, acquisition and development expenditures are deducted (in part or in full) after Adjusted Operating Profit in Section E and, hence, Section D excludes any depreciation charge relating to such expenditures. For similar reasons, if there are non cash charges such as Leachate, CRAMP or remediation provisions charged through your Profit & Loss Account then there could be a double count as we ask for the total numbers (over the entire lifecycle) for these items elsewhere."]
[]
["Note 15"]
["Please correct any Error Messages such as \"Error\", \"No Tonnage\", etc. They generally result from an omission or data inconsistency."]
[]
["Note 16"]
["If you have any queries please contact S53aReturns@epa.ie."]

{"sheet":"3. Landfill Data - to Complete","index":3,"n_rows":25,"n_cols":4,"rows_kept":25,"cut":false,"hidden":false,"merged":[[18,2,18,3],[22,2,22,3]]}
[]
[]
[]
["Landfill Information Required under Section 53A of the Waste Management Act, 1996 (as amended):"]
[]
[]
[]
[1,"Year Covered by Section 53A Statement"]
[{"$f":"1+A8","v":2},"End of Financial Year which is Covered by this Statement e.g. 31 March 2011, 31 December 2011, etc"]
[{"$f":"1+A9","v":3},"Licence Registration Number"]
[{"$f":"1+A10","v":4},"Is this Analysis being Completed by you in Weight (Tonnes) or Cubic Capacity (M3)? PLEASE KEEP CONSISTENT THROUGHOUT"]
[5,"Total Disposal Capacity of Landfill Site (over entire lifecycle/relevant period) in either Tonnes/M3 - INPUT NUMBER ONLY",null,"Please refer to Note 4 in \"Notes to Complete Analysis\""]
[6,"Total Disposal Capacity of Site based on Planning Permission Restriction (if any) in either Tonnes/M3 - INPUT NUMBER ONLY",null,"Please refer to Note 4 in \"Notes to Complete Analysis\""]
[7,"If the landfill is to be closed early what will the reduced Total Disposal Capacity be in either Tonnes or M3? - INPUT NUMBER ONLY",null,"Please refer to Note 4 in \"Notes to Complete Analysis\""]
[8,"Total Constructed Disposal Capacity in either Tonnes or M3?  INPUT NUMBER ONLY",null,"Please refer to Note 5 in \"Notes to Complete Analysis\""]
[null,null,{"$f":"IF(C12=\"\",\"\",IF(C15<>\"\",\"\",\"Error - Total Constructed Capacity must be Input\"))","v":""}]
[null,null,{"$f":"IFERROR(IF(C15>'5. Section 53A Analysis'!C28,\"Error - Total Constructed Disposal Capacity Exceeds Total Disposal Capacity\",\"\"),\"\")","v":""}]
[{"$f":"A15+1","v":9},"Is the Landfill Facility compliant with Section 53A of the Waste Management Act, 1996 (as amended)? Yes or No"]
[{"$f":"A18+1","v":10},"If the answer is Yes but \"5. Section 53A Analysis\" suggests that the Landfill may not be compliant with Section 53A of the Waste Management Act, 1996 (as amended) please describe why you consider that the Landfill is compliant"]
[]
[]
[{"$f":"A19+1","v":11},"Please indicate if you wish the information supplied to be deemed confidential (Yes/No)"]
[{"$f":"A22+1","v":12},"Please clarify why you wish the information to be deemed confidential"]
[{"$f":"A23+1","v":13},"Name of Person Who Completed this Return"]
[{"$f":"A24+1","v":14},"Position/Title of Person Who Completed this Return"]

{"sheet":"4. Financial Data - To Complete","index":4,"n_rows":150,"n_cols":32,"rows_kept":150,"cut":false,"hidden":false,"merged":[[6,3,6,4]]}
[]
[]
[]
["Financial Data to Complete - Supporting Statement of Compliance with Section 53A:"]
[]
[null,null,null,null,null,"COMPLETE DATA UP TO THE YEAR UNDER REVIEW"]
[null,null,null,"Pre- Section 53A",null,"Post Section 53A - Calendar Year or Financial Year Ended During"]
["Section",null,null,"Total Estimated Prior to Y/E in 2003/2004","Previous Y/E to 11 July 2004","12 July 2004 to next Y/E",2005,2006,2007,2008,2009,2010,2011,2012,2013,2014,2015,2016,2017,2018,2019,2020,2021,2022,2023,2024,2025,2026,2027,2028,2029,"2030 forward (cumulative)"]
[]
[null,null,null,{"$f":"IF('3. Landfill Data - to Complete'!$C$11>0,'3. Landfill Data - to Complete'!$C$11,\"\")","v":""},{"$f":"IF('3. Landfill Data - to Complete'!$C$11>0,'3. Landfill Data - to Complete'!$C$11,\"\")","v":""},{"$f":"IF('3. Landfill Data - to Complete'!$C$11>0,'3. Landfill Data - to Complete'!$C$11,\"\")","v":""},{"$f":"IF('3. Landfill Data - to Complete'!$C$11>0,'3. Landfill Data - to Complete'!$C$11,\"\")","v":""},{"$f":"IF('3. Landfill Data - to Complete'!$C$11>0,'3. Landfill Data - to Complete'!$C$11,\"\")","v":""},{"$f":"IF('3. Landfill Data - to Complete'!$C$11>0,'3. Landfill Data - to Complete'!$C$11,\"\")","v":""},{"$f":"IF('3. Landfill Data - to Complete'!$C$11>0,'3. Landfill Data - to Complete'!$C$11,\"\")","v":""},{"$f":"IF('3. Landfill Data - to Complete'!$C$11>0,'3. Landfill Data - to Complete'!$C$11,\"\")","v":""},{"$f":"IF('3. Landfill Data - to Complete'!$C$11>0,'3. Landfill Data - to Complete'!$C$11,\"\")","v":""},{"$f":"IF('3. Landfill Data - to Complete'!$C$11>0,'3. Landfill Data - to Complete'!$C$11,\"\")","v":""},{"$f":"IF('3. Landfill Data - to Complete'!$C$11>0,'3. Landfill Data - to Complete'!$C$11,\"\")","v":""},{"$f":"IF('3. Landfill Data - to Complete'!$C$11>0,'3. Landfill Data - to Complete'!$C$11,\"\")","v":""},{"$f":"IF('3. Landfill Data - to Complete'!$C$11>0,'3. Landfill Data - to Complete'!$C$11,\"\")","v":""},{"$f":"IF('3. Landfill Data - to Complete'!$C$11>0,'3. Landfill Data - to Complete'!$C$11,\"\")","v":""},{"$f":"IF('3. Landfill Data - to Complete'!$C$11>0,'3. Landfill Data - to Complete'!$C$11,\"\")","v":""},{"$f":"IF('3. Landfill Data - to Complete'!$C$11>0,'3. Landfill Data - to Complete'!$C$11,\"\")","v":""},{"$f":"IF('3. Landfill Data - to Complete'!$C$11>0,'3. Landfill Data - to Complete'!$C$11,\"\")","v":""},{"$f":"IF('3. Landfill Data - to Complete'!$C$11>0,'3. Landfill Data - to Complete'!$C$11,\"\")","v":""},{"$f":"IF('3. Landfill Data - to Complete'!$C$11>0,'3. Landfill Data - to Complete'!$C$11,\"\")","v":""},{"$f":"IF('3. Landfill Data - to Complete'!$C$11>0,'3. Landfill Data - to Complete'!$C$11,\"\")","v":""},{"$f":"IF('3. Landfill Data - to Complete'!$C$11>0,'3. Landfill Data - to Complete'!$C$11,\"\")","v":""},{"$f":"IF('3. Landfill Data - to Complete'!$C$11>0,'3. Landfill Data - to Complete'!$C$11,\"\")","v":""},{"$f":"IF('3. Landfill Data - to Complete'!$C$11>0,'3. Landfill Data - to Complete'!$C$11,\"\")","v":""},{"$f":"IF('3. Landfill Data - to Complete'!$C$11>0,'3. Landfill Data - to Complete'!$C$11,\"\")","v":""},{"$f":"IF('3. Landfill Data - to Complete'!$C$11>0,'3. Landfill Data - to Complete'!$C$11,\"\")","v":""},{"$f":"IF('3. Landfill Data - to Complete'!$C$11>0,'3. Landfill Data - to Complete'!$C$11,\"\")","v":""},{"$f":"IF('3. Landfill Data - to Complete'!$C$11>0,'3. Landfill Data - to Complete'!$C$11,\"\")","v":""},{"$f":"IF('3. Landfill Data - to Complete'!$C$11>0,'3. Landfill Data - to Complete'!$C$11,\"\")","v":""},{"$f":"IF('3. Landfill Data - to Complete'!$C$11>0,'3. Landfill Data - to Complete'!$C$11,\"\")","v":""}]
["A","Tonnage/M3 Data"]
[]
[null,"Waste Accepted for Disposal"]
[null,"Waste Accepted for Cover"]
[null,"Other - Please specify Nature here: [                                                                                                             ]"]
[null,"Total in Tonnes/M3",null,{"$f":"SUM(D13:D15)","v":0},{"$f":"SUM(E13:E15)","v":0},0,0,0,0,0,0,0,0,0,0,0,0,0,0,0,0,0,0,0,0,0,0,0,0,0,0,0]
[]
[null,null,null,{"$f":"IF(D16=0,\"No Tonnage\",\"\")","v":"No Tonnage"},{"$f":"IF(E16=0,\"No Tonnage\",\"\")","v":"No Tonnage"},"No Tonnage","No Tonnage","No Tonnage","No Tonnage","No Tonnage","No Tonnage","No Tonnage","No Tonnage","No Tonnage","No Tonnage","No Tonnage","No Tonnage","No Tonnage","No Tonnage","No Tonnage","No Tonnage","No Tonnage","No Tonnage","No Tonnage","No Tonnage","No Tonnage","No Tonnage","No Tonnage","No Tonnage","No Tonnage","No Tonnage","No Tonnage"]
[]
[null,"Waste Accepted for Disposal - Split as Follows (if available):"]
[null,"Received from 3rd Parties"]
[null,"Received from Related Parties (i.e. from within same group of companies or County Council)"]
[null,"Total Waste Accepted for Disposal in Tonnes/M3",null,null,{"$f":"E13","v":0},{"$f":"F13","v":0},0,0,0,0,0,0,0,0,0,0,0,0,0,0,0,0,0,0,0,0,0,0,0,0,0,0]
[]
[null,null,null,null,{"$f":"IF(AND(OR(E21<>\"\",E22<>\"\"),E23<>SUM(E21:E22)),\"Split must equal total\",\"\")","v":""},{"$f":"IF(AND(OR(F21<>\"\",F22<>\"\"),F23<>SUM(F21:F22)),\"Split must equal total\",\"\")","v":""},"","","","","","","","","","","","","","","","","","","","","","","","","",""]
[]
[null,null,null,null,"€'000","€'000","€'000","€'000","€'000","€'000","€'000","€'000","€'000","€'000","€'000","€'000","€'000","€'000","€'000","€'000","€'000","€'000","€'000","€'000","€'000","€'000","€'000","€'000","€'000","€'000","€'000","€'000"]
[]
["B","Revenue Data - EXCLUDING VAT"]
[]
[null,"Revenue from Waste Accepted for Disposal ex Levy"]
[null,"Revenue from Waste Accepted for Cover"]
[null,"Landfill Levy Collected"]
[null,"Revenue from Gas Utilisation"]
[null,"Other - Please specify Nature here: [                                                                                                               ]"]
[null,"Total Revenue excluding VAT",null,null,{"$f":"SUM(E31:E35)","v":0},{"$f":"SUM(F31:F35)","v":0},0,0,0,0,0,0,0,0,0,0,0,0,0,0,0,0,0,0,0,0,0,0,0,0,0,0]
[]
[null,"Revenue per Tonne for Waste Accepted for Disposal ex Levy",null,null,{"$f":"IF(OR(E13<>\"\",E13<>0),E31/E13,\"\")","v":""},{"$f":"IF(OR(F13<>\"\",F13<>0),F31/F13,\"\")","v":""},"","","","","","","","","","","","","","","","","","","","","","","","","",""]
[null,"Revenue per Tonne for Waste Accepted for Disposal for Cover",null,null,{"$f":"IF(OR(E14<>\"\",E14<>0),E32/E14,\"\")","v":""},{"$f":"IF(OR(F14<>\"\",F14<>0),F32/F14,\"\")","v":""},"","","","","","","","","","","","","","","","","","","","","","","","","",""]
[]
[null,"Total Revenue excluding VAT - Split as Follows (if available):"]
[null,"Received from 3rd Parties"]
[null,"Received from Related Parties (i.e. from within same group of companies or County Council)"]
[null,"Total Revenue excluding VAT",null,null,{"$f":"SUM(E42:E43)","v":0},{"$f":"SUM(F42:F43)","v":0},0,0,0,0,0,0,0,0,0,0,0,0,0,0,0,0,0,0,0,0,0,0,0,0,0,0]
[]
[null,null,null,{"$f":"IF(D44>D36,\"Error\",\"\")","v":""},{"$f":"IF(AND(OR(E42<>\"\",E43<>\"\"),E44<>E36),\"Row 44 must equal Row 36\",\"\")","v":""},{"$f":"IF(AND(OR(F42<>\"\",F43<>\"\"),F44<>F36),\"Row 44 must equal Row 36\",\"\")","v":""},{"$f":"IF(AND(OR(G42<>\"\",G43<>\"\"),G44<>G36),\"Row 44 must equal Row 36\",\"\")","v":""},"","","","","","","","","","","","","","","","","","","","","","","","",""]
[]
["C","Operating Cost Data - EXCLUDING RECOVERABLE VAT"]
[null,"Fill in as positive number unless amount is a Credit"]
[null,"Landfill Site Operating Costs (excluding any items separately analysed in Rows 51 to 59)"]
[null,"Administration Costs  (excluding any items separately analysed in Rows 50 or 52 to 59)"]
[null,"Landfill Levy Payment"]
[null,"CRAMP Costs Provided For in the Profit and Loss Account/Income Statement but not actually paid"]
[null,"Leachate Costs Provided for in the Profit and Loss Account/Income Statement but not actually paid"]
[null,"Other Remediation Costs Provided for in the Profit and Loss Account/Income Statement but not actually paid"]
[null,"Depreciation of Fixed Assets - THIS MUST BE COMPLETED IF YOU HAVE A DEPRECIATION CHARGE"]
[null,"Allocated Costs - allocated from central body"]
[null,"Community Levy"]
[null,"All Other Costs (not listed separately above)"]
[null,"Total Operating costs excluding recoverable VAT",null,null,{"$f":"SUM(E50:E59)","v":0},{"$f":"SUM(F50:F59)","v":0},0,0,0,0,0,0,0,0,0,0,0,0,0,0,0,0,0,0,0,0,0,0,0,0,0,0]
[]
[null,"Operating Profit",null,null,{"$f":"E36-E60","v":0},{"$f":"F36-F60","v":0},0,0,0,0,0,0,0,0,0,0,0,0,0,0,0,0,0,0,0,0,0,0,0,0,0,0]
[null,"Do Revenues Exceed Operating Costs?",null,null,{"$f":"IF(E62>-0.01,\"Yes\",\"No\")","v":"Yes"},"Yes","Yes","Yes","Yes","Yes","Yes","Yes","Yes","Yes","Yes","Yes","Yes","Yes","Yes","Yes","Yes","Yes","Yes","Yes","Yes","Yes","Yes","Yes","Yes","Yes","Yes","Yes"]
[null,"Does the Levy in Revenue Equal the Levy in Operating Costs?",null,null,{"$f":"IF(E33<>E52,\"Error on Levy\",\"\")","v":""},{"$f":"IF(F33<>F52,\"Error on Levy\",\"\")","v":""},"","","","","","","","","","","","","","","","","","","","","","","","","",""]
[]
["D","Adjusted Operating Profit Calculation:"]
[null,{"$f":"B62","v":"Operating Profit"},null,null,{"$f":"E62","v":0},0,0,0,0,0,0,0,0,0,0,0,0,0,0,0,0,0,0,0,0,0,0,0,0,0,0,0]
[]
[null,"Add Back Items Covered Separately below - CRAMP and Remediation Provisions, Acquisition and Development Costs:"]
[]
[null,{"$f":"B53","v":"CRAMP Costs Provided For in the Profit and Loss Account/Income Statement but not actually paid"},null,null,{"$f":"E53","v":0},0,0,0,0,0,0,0,0,0,0,0,0,0,0,0,0,0,0,0,0,0,0,0,0,0,0,0]
[null,{"$f":"B54","v":"Leachate Costs Provided for in the Profit and Loss Account/Income Statement but not actually paid"},null,null,{"$f":"E54","v":0},0,0,0,0,0,0,0,0,0,0,0,0,0,0,0,0,0,0,0,0,0,0,0,0,0,0,0]
[null,{"$f":"B55","v":"Other Remediation Costs Provided for in the Profit and Loss Account/Income Statement but not actually paid"},null,null,{"$f":"E55","v":0},0,0,0,0,0,0,0,0,0,0,0,0,0,0,0,0,0,0,0,0,0,0,0,0,0,0,0]
[null,{"$f":"B56","v":"Depreciation of Fixed Assets - THIS MUST BE COMPLETED IF YOU HAVE A DEPRECIATION CHARGE"},null,null,{"$f":"E56","v":0},0,0,0,0,0,0,0,0,0,0,0,0,0,0,0,0,0,0,0,0,0,0,0,0,0,0,0]
[null,"Capping Costs Actual Paid and included in Operating Costs above for waste collected pre 12 July 2004"]
[null,"Leachate Costs Actual Paid and included in Operating Costs above for waste collected pre 12 July 2004"]
[null,"Other Items that you feel are appropriate to add-back/deduct - please provide a brief explanation below"]
[null,"Description of Item:"]
[]
[]
[]
[]
[]
[null,"Total Addbacks",null,null,{"$f":"SUM(E71:E77)","v":0},{"$f":"SUM(F71:F77)","v":0},0,0,0,0,0,0,0,0,0,0,0,0,0,0,0,0,0,0,0,0,0,0,0,0,0,0]
[]
[null,"Adjusted Operating Profit",null,null,{"$f":"E67+E84","v":0},{"$f":"F67+F84","v":0},0,0,0,0,0,0,0,0,0,0,0,0,0,0,0,0,0,0,0,0,0,0,0,0,0,0]
[]
[null,null,"€'000","€'000","€'000","€'000","€'000","€'000","€'000","€'000","€'000","€'000","€'000","€'000","€'000","€'000","€'000","€'000","€'000","€'000","€'000","€'000","€'000","€'000","€'000","€'000","€'000","€'000","€'000","€'000","€'000","€'000"]
["E1","Shared Infrastructure Acquisition and Development Costs - INCURRED TO DATE:"]
[]
[null,"Cost of Land"]
[null,"Cost of Roads and Infrastructure"]
[null,"Cost of Site Facilities e.g. Buildings, gas flares, etc"]
[null,"Cost of Plant, Machinery and Vehicles"]
[null,"Cost of All Other Capital Items not covered above"]
[null,"Total Shared Infrastructure Acquisition and Development Costs - INCURRED TO DATE",{"$f":"SUM(C91:C95)","v":0}]
[null,"% Allocation to Post Introduction of Section 53A (Tonnage/M3 for Year divided by Total Disposal Capacity)",null,null,null,{"$f":"IFERROR(F$13/'5. Section 53A Analysis'!$C$28,\"\")","v":""},{"$f":"IFERROR(G$13/'5. Section 53A Analysis'!$C$28,\"\")","v":""},{"$f":"IFERROR(H$13/'5. Section 53A Analysis'!$C$28,\"\")","v":""},{"$f":"IFERROR(I$13/'5. Section 53A Analysis'!$C$28,\"\")","v":""},{"$f":"IFERROR(J$13/'5. Section 53A Analysis'!$C$28,\"\")","v":""},{"$f":"IFERROR(K$13/'5. Section 53A Analysis'!$C$28,\"\")","v":""},{"$f":"IFERROR(L$13/'5. Section 53A Analysis'!$C$28,\"\")","v":""},{"$f":"IFERROR(M$13/'5. Section 53A Analysis'!$C$28,\"\")","v":""},{"$f":"IFERROR(N$13/'5. Section 53A Analysis'!$C$28,\"\")","v":""},{"$f":"IFERROR(O$13/'5. Section 53A Analysis'!$C$28,\"\")","v":""},{"$f":"IFERROR(P$13/'5. Section 53A Analysis'!$C$28,\"\")","v":""},{"$f":"IFERROR(Q$13/'5. Section 53A Analysis'!$C$28,\"\")","v":""},{"$f":"IFERROR(R$13/'5. Section 53A Analysis'!$C$28,\"\")","v":""},{"$f":"IFERROR(S$13/'5. Section 53A Analysis'!$C$28,\"\")","v":""},{"$f":"IFERROR(T$13/'5. Section 53A Analysis'!$C$28,\"\")","v":""},{"$f":"IFERROR(U$13/'5. Section 53A Analysis'!$C$28,\"\")","v":""},{"$f":"IFERROR(V$13/'5. Section 53A Analysis'!$C$28,\"\")","v":""},{"$f":"IFERROR(W$13/'5. Section 53A Analysis'!$C$28,\"\")","v":""},{"$f":"IFERROR(X$13/'5. Section 53A Analysis'!$C$28,\"\")","v":""},{"$f":"IFERROR(Y$13/'5. Section 53A Analysis'!$C$28,\"\")","v":""},{"$f":"IFERROR(Z$13/'5. Section 53A Analysis'!$C$28,\"\")","v":""},{"$f":"IFERROR(AA$13/'5. Section 53A Analysis'!$C$28,\"\")","v":""},{"$f":"IFERROR(AB$13/'5. Section 53A Analysis'!$C$28,\"\")","v":""},{"$f":"IFERROR(AC$13/'5. Section 53A Analysis'!$C$28,\"\")","v":""},{"$f":"IFERROR(AD$13/'5. Section 53A Analysis'!$C$28,\"\")","v":""},{"$f":"IFERROR(AE$13/'5. Section 53A Analysis'!$C$28,\"\")","v":""},{"$f":"IFERROR(AF$13/'5. Section 53A Analysis'!$C$28,\"\")","v":""}]
[null,"Total Shared Infrasructure Acquisition and Development Costs - INCURRED TO DATE - Allocated Year by Year",null,null,null,{"$f":"IFERROR($C$96*F97,\"\")","v":""},{"$f":"IFERROR($C$96*G97,\"\")","v":""},{"$f":"IFERROR($C$96*H97,\"\")","v":""},"","","","","","","","","","","","","","","","","","","","","","","",""]
[]
[]
["E2","Completed Cell Development Costs"]
[]
[null,"Costs of Cell Construction"]
[null,"Other Cell Related Costs"]
[null,"Completed Cell Development Costs",{"$f":"SUM(C103:C104)","v":0}]
[null,"% Allocation to Post Introduction of Section 53A (Tonnage/M3 for Year divided by Total Constructed Disposal Capacity)",null,null,null,{"$f":"IFERROR(F$13/'5. Section 53A Analysis'!$C$41,\"\")","v":""},{"$f":"IFERROR(G$13/'5. Section 53A Analysis'!$C$41,\"\")","v":""},{"$f":"IFERROR(H$13/'5. Section 53A Analysis'!$C$41,\"\")","v":""},{"$f":"IFERROR(I$13/'5. Section 53A Analysis'!$C$41,\"\")","v":""},{"$f":"IFERROR(J$13/'5. Section 53A Analysis'!$C$41,\"\")","v":""},{"$f":"IFERROR(K$13/'5. Section 53A Analysis'!$C$41,\"\")","v":""},{"$f":"IFERROR(L$13/'5. Section 53A Analysis'!$C$41,\"\")","v":""},{"$f":"IFERROR(M$13/'5. Section 53A Analysis'!$C$41,\"\")","v":""},{"$f":"IFERROR(N$13/'5. Section 53A Analysis'!$C$41,\"\")","v":""},{"$f":"IFERROR(O$13/'5. Section 53A Analysis'!$C$41,\"\")","v":""},{"$f":"IFERROR(P$13/'5. Section 53A Analysis'!$C$41,\"\")","v":""},{"$f":"IFERROR(Q$13/'5. Section 53A Analysis'!$C$41,\"\")","v":""},{"$f":"IFERROR(R$13/'5. Section 53A Analysis'!$C$41,\"\")","v":""},{"$f":"IFERROR(S$13/'5. Section 53A Analysis'!$C$41,\"\")","v":""},{"$f":"IFERROR(T$13/'5. Section 53A Analysis'!$C$41,\"\")","v":""},{"$f":"IFERROR(U$13/'5. Section 53A Analysis'!$C$41,\"\")","v":""},{"$f":"IFERROR(V$13/'5. Section 53A Analysis'!$C$41,\"\")","v":""},{"$f":"IFERROR(W$13/'5. Section 53A Analysis'!$C$41,\"\")","v":""},{"$f":"IFERROR(X$13/'5. Section 53A Analysis'!$C$41,\"\")","v":""},{"$f":"IFERROR(Y$13/'5. Section 53A Analysis'!$C$41,\"\")","v":""},{"$f":"IFERROR(Z$13/'5. Section 53A Analysis'!$C$41,\"\")","v":""},{"$f":"IFERROR(AA$13/'5. Section 53A Analysis'!$C$41,\"\")","v":""},{"$f":"IFERROR(AB$13/'5. Section 53A Analysis'!$C$41,\"\")","v":""},{"$f":"IFERROR(AC$13/'5. Section 53A Analysis'!$C$41,\"\")","v":""},{"$f":"IFERROR(AD$13/'5. Section 53A Analysis'!$C$41,\"\")","v":""},{"$f":"IFERROR(AE$13/'5. Section 53A Analysis'!$C$41,\"\")","v":""},{"$f":"IFERROR(AF$13/'5. Section 53A Analysis'!$C$41,\"\")","v":""}]
[null,"Total Completed Cell Development Costs - Allocated Year by Year",null,null,null,{"$f":"IFERROR($C$105*F106,\"\")","v":""},{"$f":"IFERROR($C$105*G106,\"\")","v":""},{"$f":"IFERROR($C$105*H106,\"\")","v":""},"","","","","","",{"$f":"IFERROR($C$105*O106,\"\")","v":""},"","","","","","","","","","","","","","","","",""]
[]
[]
["E3","Capping Costs for Constructed Cells Only - INCURRED AND TO BE INCURRED AT A LATER DATE:"]
[]
[null,"Cost of Capping incurred"]
[null,"Cost of Capping to be incurred"]
[null,"Total Capping Costs for Constructed Cells Only - INCURRED AND TO BE INCURRED AT A LATER DATE",{"$f":"SUM(C112:C113)","v":0}]
[null,"% Allocation to Post Introduction of Section 53A (Tonnage/M3 for Year divided by Total Constructed Disposal Capacity)",null,null,null,{"$f":"IFERROR(F$13/'5. Section 53A Analysis'!$C$41,\"\")","v":""},{"$f":"IFERROR(G$13/'5. Section 53A Analysis'!$C$41,\"\")","v":""},{"$f":"IFERROR(H$13/'5. Section 53A Analysis'!$C$41,\"\")","v":""},{"$f":"IFERROR(I$13/'5. Section 53A Analysis'!$C$41,\"\")","v":""},{"$f":"IFERROR(J$13/'5. Section 53A Analysis'!$C$41,\"\")","v":""},{"$f":"IFERROR(K$13/'5. Section 53A Analysis'!$C$41,\"\")","v":""},{"$f":"IFERROR(L$13/'5. Section 53A Analysis'!$C$41,\"\")","v":""},{"$f":"IFERROR(M$13/'5. Section 53A Analysis'!$C$41,\"\")","v":""},{"$f":"IFERROR(N$13/'5. Section 53A Analysis'!$C$41,\"\")","v":""},{"$f":"IFERROR(O$13/'5. Section 53A Analysis'!$C$41,\"\")","v":""},{"$f":"IFERROR(P$13/'5. Section 53A Analysis'!$C$41,\"\")","v":""},{"$f":"IFERROR(Q$13/'5. Section 53A Analysis'!$C$41,\"\")","v":""},{"$f":"IFERROR(R$13/'5. Section 53A Analysis'!$C$41,\"\")","v":""},{"$f":"IFERROR(S$13/'5. Section 53A Analysis'!$C$41,\"\")","v":""},{"$f":"IFERROR(T$13/'5. Section 53A Analysis'!$C$41,\"\")","v":""},{"$f":"IFERROR(U$13/'5. Section 53A Analysis'!$C$41,\"\")","v":""},{"$f":"IFERROR(V$13/'5. Section 53A Analysis'!$C$41,\"\")","v":""},{"$f":"IFERROR(W$13/'5. Section 53A Analysis'!$C$41,\"\")","v":""},{"$f":"IFERROR(X$13/'5. Section 53A Analysis'!$C$41,\"\")","v":""},{"$f":"IFERROR(Y$13/'5. Section 53A Analysis'!$C$41,\"\")","v":""},{"$f":"IFERROR(Z$13/'5. Section 53A Analysis'!$C$41,\"\")","v":""},{"$f":"IFERROR(AA$13/'5. Section 53A Analysis'!$C$41,\"\")","v":""},{"$f":"IFERROR(AB$13/'5. Section 53A Analysis'!$C$41,\"\")","v":""},{"$f":"IFERROR(AC$13/'5. Section 53A Analysis'!$C$41,\"\")","v":""},{"$f":"IFERROR(AD$13/'5. Section 53A Analysis'!$C$41,\"\")","v":""},{"$f":"IFERROR(AE$13/'5. Section 53A Analysis'!$C$41,\"\")","v":""},{"$f":"IFERROR(AF$13/'5. Section 53A Analysis'!$C$41,\"\")","v":""}]
[null,"Total Capping Costs for Constructed Cells Only - INCURRED AND TO BE INCURRED AT A LATER DATE - Allocated Year by Year",null,null,null,{"$f":"IFERROR($C$114*F115,\"\")","v":""},{"$f":"IFERROR($C$114*G115,\"\")","v":""},"","","","","","","","","","","","","","","","","","","","","","","","",""]
[]
[]
["E4","Leachate Costs for Constructed Cells Only to Landfill Closure Date - INCURRED AND TO BE INCURRED AT A LATER DATE:"]
[]
[null,"Cost of Leachate Collection, Transport and Disposal incurred"]
[null,"Cost of Leachate Collection, Transport and Disposal to be incurred until the Landfill Closure Date"]
[null,"Total Leachate Costs for Constructed Cells Only - INCURRED AND TO BE INCURRED AT A LATER DATE",{"$f":"SUM(C121:C122)","v":0}]
[null,"% Allocation to Post Introduction of Section 53A (Tonnage/M3 for Year divided by Total Constructed Disposal Capacity)",null,null,null,{"$f":"IFERROR(F$13/'5. Section 53A Analysis'!$C$41,\"\")","v":""},{"$f":"IFERROR(G$13/'5. Section 53A Analysis'!$C$41,\"\")","v":""},{"$f":"IFERROR(H$13/'5. Section 53A Analysis'!$C$41,\"\")","v":""},{"$f":"IFERROR(I$13/'5. Section 53A Analysis'!$C$41,\"\")","v":""},{"$f":"IFERROR(J$13/'5. Section 53A Analysis'!$C$41,\"\")","v":""},{"$f":"IFERROR(K$13/'5. Section 53A Analysis'!$C$41,\"\")","v":""},{"$f":"IFERROR(L$13/'5. Section 53A Analysis'!$C$41,\"\")","v":""},{"$f":"IFERROR(M$13/'5. Section 53A Analysis'!$C$41,\"\")","v":""},{"$f":"IFERROR(N$13/'5. Section 53A Analysis'!$C$41,\"\")","v":""},{"$f":"IFERROR(O$13/'5. Section 53A Analysis'!$C$41,\"\")","v":""},{"$f":"IFERROR(P$13/'5. Section 53A Analysis'!$C$41,\"\")","v":""},{"$f":"IFERROR(Q$13/'5. Section 53A Analysis'!$C$41,\"\")","v":""},{"$f":"IFERROR(R$13/'5. Section 53A Analysis'!$C$41,\"\")","v":""},{"$f":"IFERROR(S$13/'5. Section 53A Analysis'!$C$41,\"\")","v":""},{"$f":"IFERROR(T$13/'5. Section 53A Analysis'!$C$41,\"\")","v":""},{"$f":"IFERROR(U$13/'5. Section 53A Analysis'!$C$41,\"\")","v":""},{"$f":"IFERROR(V$13/'5. Section 53A Analysis'!$C$41,\"\")","v":""},{"$f":"IFERROR(W$13/'5. Section 53A Analysis'!$C$41,\"\")","v":""},{"$f":"IFERROR(X$13/'5. Section 53A Analysis'!$C$41,\"\")","v":""},{"$f":"IFERROR(Y$13/'5. Section 53A Analysis'!$C$41,\"\")","v":""},{"$f":"IFERROR(Z$13/'5. Section 53A Analysis'!$C$41,\"\")","v":""},{"$f":"IFERROR(AA$13/'5. Section 53A Analysis'!$C$41,\"\")","v":""},{"$f":"IFERROR(AB$13/'5. Section 53A Analysis'!$C$41,\"\")","v":""},{"$f":"IFERROR(AC$13/'5. Section 53A Analysis'!$C$41,\"\")","v":""},{"$f":"IFERROR(AD$13/'5. Section 53A Analysis'!$C$41,\"\")","v":""},{"$f":"IFERROR(AE$13/'5. Section 53A Analysis'!$C$41,\"\")","v":""},{"$f":"IFERROR(AF$13/'5. Section 53A Analysis'!$C$41,\"\")","v":""}]
[null,"Total Leachate Costs for Constructed Cells Only - INCURRED AND TO BE INCURRED AT A LATER DATE - Allocated Year by Year",null,null,null,{"$f":"IFERROR($C$123*F124,\"\")","v":""},{"$f":"IFERROR($C$123*G124,\"\")","v":""},"","","","","","","","","","","","","","","","","","","","","","","","",""]
[]
[]
["E5","Restoration and Aftercare Costs Post Site Closure - TO BE INCURRED AT A LATER DATE"]
[]
[null,"Cost of Leachate Collection, Transport and Disposal - post site closure"]
[null,"Cost of Monitoring"]
[null,"Cost of Security"]
[null,"Cost of Aftercare"]
[null,"Cost of All Other Items not covered above"]
[null,"Net Income (if any)  e.g. Utilisation of gas to produce electricity - include full costs of generating such income.  Enter Profit as Minus"]
[null,"Description of Item: Such Income must have a sound basis for inclusion"]
[]
[]
[]
[]
[]
[null,"Total Restoration and Aftercare Costs Post Site Closure - TO BE INCURRED AT A LATER DATE",{"$f":"SUM(C130:C135)","v":0}]
[null,"% Allocation to Post Introduction of Section 53A (Tonnage/M3 for Year divided by Total Disposal Capacity)",null,null,null,{"$f":"IFERROR(F$13/'5. Section 53A Analysis'!$C$28,\"\")","v":""},{"$f":"IFERROR(G$13/'5. Section 53A Analysis'!$C$28,\"\")","v":""},{"$f":"IFERROR(H$13/'5. Section 53A Analysis'!$C$28,\"\")","v":""},{"$f":"IFERROR(I$13/'5. Section 53A Analysis'!$C$28,\"\")","v":""},{"$f":"IFERROR(J$13/'5. Section 53A Analysis'!$C$28,\"\")","v":""},{"$f":"IFERROR(K$13/'5. Section 53A Analysis'!$C$28,\"\")","v":""},{"$f":"IFERROR(L$13/'5. Section 53A Analysis'!$C$28,\"\")","v":""},{"$f":"IFERROR(M$13/'5. Section 53A Analysis'!$C$28,\"\")","v":""},{"$f":"IFERROR(N$13/'5. Section 53A Analysis'!$C$28,\"\")","v":""},{"$f":"IFERROR(O$13/'5. Section 53A Analysis'!$C$28,\"\")","v":""},{"$f":"IFERROR(P$13/'5. Section 53A Analysis'!$C$28,\"\")","v":""},{"$f":"IFERROR(Q$13/'5. Section 53A Analysis'!$C$28,\"\")","v":""},{"$f":"IFERROR(R$13/'5. Section 53A Analysis'!$C$28,\"\")","v":""},{"$f":"IFERROR(S$13/'5. Section 53A Analysis'!$C$28,\"\")","v":""},{"$f":"IFERROR(T$13/'5. Section 53A Analysis'!$C$28,\"\")","v":""},{"$f":"IFERROR(U$13/'5. Section 53A Analysis'!$C$28,\"\")","v":""},{"$f":"IFERROR(V$13/'5. Section 53A Analysis'!$C$28,\"\")","v":""},{"$f":"IFERROR(W$13/'5. Section 53A Analysis'!$C$28,\"\")","v":""},{"$f":"IFERROR(X$13/'5. Section 53A Analysis'!$C$28,\"\")","v":""},{"$f":"IFERROR(Y$13/'5. Section 53A Analysis'!$C$28,\"\")","v":""},{"$f":"IFERROR(Z$13/'5. Section 53A Analysis'!$C$28,\"\")","v":""},{"$f":"IFERROR(AA$13/'5. Section 53A Analysis'!$C$28,\"\")","v":""},{"$f":"IFERROR(AB$13/'5. Section 53A Analysis'!$C$28,\"\")","v":""},{"$f":"IFERROR(AC$13/'5. Section 53A Analysis'!$C$28,\"\")","v":""},{"$f":"IFERROR(AD$13/'5. Section 53A Analysis'!$C$28,\"\")","v":""},{"$f":"IFERROR(AE$13/'5. Section 53A Analysis'!$C$28,\"\")","v":""},{"$f":"IFERROR(AF$13/'5. Section 53A Analysis'!$C$28,\"\")","v":""}]
[null,"Total Restoration and Aftercare Costs Post Site Closure - TO BE INCURRED AT A LATER DATE - Allocated Year by Year",null,null,null,{"$f":"IFERROR($C$142*F143,\"\")","v":""},{"$f":"IFERROR($C$142*G143,\"\")","v":""},"","","","","","","","","","","","","","","","","","","","","","","","",""]
[]
[]
[]
[null,"CALCULATION OF SECTION 53A ANALYSIS YEAR BY YEAR (D - E1 - E2 - E3 - E4 - E5)",null,null,null,{"$f":"IFERROR(F86-F98-F107-F116-F125-F144,\"\")","v":""},{"$f":"IFERROR(G86-G98-G107-G116-G125-G144,\"\")","v":""},"","","","","","","","","","","","","","","","","","","","","","","","",""]
[]
[null,"ACCUMULATED CALCULATION OF SECTION 53A ANALYSIS (D - E1 - E2 - E3 - E4 - E5)",null,null,null,{"$f":"IFERROR(F148,\"\")","v":""},{"$f":"IFERROR(F150+G148,\"\")","v":""},{"$f":"IFERROR(G150+H148,\"\")","v":""},"","","","","","","","","","","","","","","","","","","","","","","",""]

{"sheet":"5. Section 53A Analysis","index":5,"n_rows":49,"n_cols":4,"rows_kept":49,"cut":false,"hidden":false,"merged":[]}
[]
[]
[]
["Summary Analysis of Section 53A Data:"]
[]
[]
[]
["Section","Description","€'000","% of Total Cost"]
[]
["D","Adjusted Operating Profit to Date since introduction of Section 53A",{"$f":"SUM('4. Financial Data - To Complete'!F86:AF86)","v":0}]
[]
["E1","Allocation of: Shared Infrastructure Acquisition and Development Costs - Incurred to Date",{"$f":"-SUM('4. Financial Data - To Complete'!F98:AF98)","v":0},{"$f":"IFERROR(-C12/'4. Financial Data - To Complete'!C96,\"\")","v":""}]
[]
["E2","Allocation of: Cell Development Costs - Incurred to Date",{"$f":"-SUM('4. Financial Data - To Complete'!F107:AF107)","v":0},{"$f":"IFERROR(-C14/'4. Financial Data - To Complete'!C105,\"\")","v":""}]
[]
["E3","Allocation of: Capping Costs for Constructed Cells Only - Incurred and to be Incurred at a Later Date",{"$f":"-SUM('4. Financial Data - To Complete'!F116:AF116)","v":0},{"$f":"IFERROR(-C16/'4. Financial Data - To Complete'!C114,\"\")","v":""}]
[]
["E4","Allocation of: Leachate Costs for Constructed Cells Only - Incurred and to be Incurred at a Later Date",{"$f":"-SUM('4. Financial Data - To Complete'!F125:AF125)","v":0},{"$f":"IFERROR(-C18/'4. Financial Data - To Complete'!C123,\"\")","v":""}]
[]
["E5","Allocation of: Restoration and Aftercare Costs Post Site Closure - To be Incurred at a Later Date",{"$f":"-SUM('4. Financial Data - To Complete'!F144:AF144)","v":0},{"$f":"IFERROR(-C20/'4. Financial Data - To Complete'!C142,\"\")","v":""}]
[]
[null,"ACCUMULATED SURPLUS POST INTRODUCTION OF SECTION 53A",{"$f":"C10+C12+C14+C16+C18+C20","v":0}]
[]
[]
[]
[null,"Summary of Total Disposal Capacity of Landfill Facility:",{"$f":"IF('3. Landfill Data - to Complete'!$C$11>0,'3. Landfill Data - to Complete'!$C$11,\"\")","v":""}]
[]
[null,"Total Disposal Capacity of Landfill Facility",{"$f":"IFERROR(SMALL('3. Landfill Data - to Complete'!C12:C14,COUNTIF('3. Landfill Data - to Complete'!C12:C14,0)+1),\"\")","v":""},1]
[]
[null,"Less: Capacity used prior to Introduction of Section 53A",{"$f":"-SUM('4. Financial Data - To Complete'!D13:E13)","v":0},{"$f":"IFERROR(-C30/$C$28,\"\")","v":""}]
[]
[null,"Capacity to be used following Introduction of Section 53A",{"$f":"SUM(C28:C30)","v":0},{"$f":"IFERROR(C32/$C$28,\"\")","v":""}]
[]
[null,"Less: Capacity Used to date following Introduction of Section 53A",{"$f":"-SUM('4. Financial Data - To Complete'!F13:AF13)","v":0},{"$f":"IFERROR(-C34/$C$28,\"\")","v":""}]
[]
[null,"Current remaining Overall Landfill Capacity pertaining to Section 53A Period",{"$f":"SUM(C32:C34)","v":0},{"$f":"IFERROR(C36/$C$28,\"\")","v":""}]
[]
[]
[null,"Summary of Total Constructed Disposal Capacity of Landfill Facility:",{"$f":"IF('3. Landfill Data - to Complete'!$C$11>0,'3. Landfill Data - to Complete'!$C$11,\"\")","v":""}]
[]
[null,"Total Capacity of Cells Constructed to Date",{"$f":"'3. Landfill Data - to Complete'!C15","v":0},1]
[]
[null,"Less: Capacity used prior to Introduction of Section 53A",{"$f":"C30","v":0},{"$f":"IFERROR(-C43/$C$41,\"\")","v":""}]
[]
[null,"Capacity to be used following Introduction of Section 53A",{"$f":"SUM(C41:C43)","v":0},{"$f":"IFERROR(C45/$C$41,\"\")","v":""}]
[]
[null,"Less: Capacity Used to date following Introduction of Section 53A",{"$f":"C34","v":0},{"$f":"IFERROR(-C47/$C$41,\"\")","v":""}]
[]
[null,"Current remaining Cell Capacity pertaining to Section 53A Period",{"$f":"SUM(C45:C48)","v":0},{"$f":"IFERROR(C49/$C$41,\"\")","v":""}]

{"sheet":"6. Comments - To Complete","index":6,"n_rows":33,"n_cols":4,"rows_kept":33,"cut":false,"hidden":false,"merged":[]}
[]
[]
[]
["Notes to Completion of Detailed Analysis Supporting Compliance with Section 53A:"]
[]
[]
["Number","Worksheet ref","Matter of Note","Comment"]
[]
[1]
[2]
[3]
[4]
[5]
[6]
[7]
[8]
[9]
[10]
[11]
[12]
[13]
[14]
[15]
[16]
[17]
[18]
[19]
[20]
[21]
[22]
[23]
[24]
[25]

{"sheet":"7. Data Sheet","index":7,"n_rows":44,"n_cols":4,"rows_kept":44,"cut":false,"hidden":true,"merged":[]}
["DO NOT ATTEMPT TO AMEND THIS DATA"]
[]
[]
["Units","Years","Compliance","Worksheet comments"]
["Tonnes",2011,"Yes",1]
["M3",2012,"No",2]
[null,2013,null,3]
[null,2014,null,4]
[null,2015,null,5]
[null,2016,null,"Other"]
[null,2017]
[null,2018]
[null,2019]
[null,2020]
[null,2021]
[null,2022]
[null,2023]
[null,2024]
[null,2025]
[null,2026]
[null,2027]
[null,2028]
[null,2029]
[null,2030]
[null,2031]
[null,2032]
[null,2033]
[null,2034]
[null,2035]
[null,2036]
[null,2037]
[null,2038]
[null,2039]
[null,2040]
[null,2041]
[null,2042]
[null,2043]
[null,2044]
[null,2045]
[null,2046]
[null,2047]
[null,2048]
[null,2049]
[null,2050]